fUST/lending_fUST_20240726
["ID","MTS","AMOUNT","RATE_DAILY","PERIOD"]
[333259598,1721998248987,-500.0,0.00014607,2]
[333259599,1721998248998,-500.0,0.00014607,2]
[333259600,1721998249008,-500.0,0.00014607,2]
[333259601,1721998249019,-500.0,0.00014607,2]
[333259602,1721998249030,-692.32,0.00014607,2]
[333259603,1721998249039,-597.39,0.00014607,2]
[333259604,1721998249050,-922.88,0.00014607,2]
[333259605,1721998249060,-500.0,0.00014607,2]
[333259606,1721998249072,-500.0,0.00014607,2]
[333259607,1721998249081,-565.03,0.00014607,2]
[333259608,1721998249091,-575.55,0.00014607,2]
[333259609,1721998249102,-500.0,0.00014607,2]
[333259610,1721998249112,-500.0,0.00014607,2]
[333259611,1721998249122,-500.0,0.00014607,2]
[333259612,1721998249136,-571.03,0.00014607,2]
[333259613,1721998249156,-365.91731003,0.00014607,2]
[333259614,1721998249168,-567.30495299,0.00014607,2]
[333259615,1721998249179,-80.13323576,0.00014607,2]
[333259617,1721998585765,153.56,0.00015,31]
[333259618,1721998585820,153.56,0.00015,31]
[333259619,1721998585922,153.56,0.00015,31]
[333259620,1721998585990,153.56,0.00015,31]
[333259621,1721998586037,153.56,0.00015,31]
[333259622,1721998586081,153.56,0.00015,31]
[333259623,1721998586129,153.56,0.00015,31]
[333259624,1721998586184,153.56,0.00015,31]
[333259625,1721998586253,153.56,0.00015,31]
[333259632,1721999171595,1000.0,0.00022,60]
[333259633,1721999191518,153.57,0.00015,31]
[333259634,1721999191572,153.57,0.00015,31]
[333259635,1721999191633,153.57,0.00015,31]
[333259636,1721999191697,153.57,0.00015,31]
[333259637,1721999191763,153.57,0.00015,31]
[333259638,1721999191815,153.57,0.00015,31]
[333259639,1721999191882,153.57,0.00015,31]
[333259640,1721999191934,153.57,0.00015,31]
[333259956,1721999441492,-166.666666,0.00012285,2]
[333259957,1721999441502,-166.666666,0.0001262,2]
[333259958,1721999441511,-166.666666,0.00012955,2]
[333259959,1721999441521,-4000.0,0.00013,2]
[333259960,1721999441531,-166.666666,0.0001329,2]
[333259961,1721999441539,-162.90125,0.00013425,2]
[333259962,1721999441549,-160.0,0.00013591,3]
[333259963,1721999441559,-166.666666,0.00013625,2]
[333259964,1721999441568,-500.0,0.00013698,2]
[333259965,1721999441578,-841.16,0.00013698,2]
[333259966,1721999441588,-500.0,0.00013698,2]
[333259967,1721999441597,-500.0,0.00013698,2]
[333259968,1721999441606,-500.0,0.00013698,2]
[333259969,1721999441615,-500.0,0.00013698,2]
[333259970,1721999441624,-624.08,0.00013698,2]
[333259971,1721999441633,-500.0,0.00013698,2]
[333259972,1721999441643,-417.85646683,0.00013698,2]
[333259973,1721999441652,-500.0,0.00013698,2]
[333259974,1721999441662,-931.82,0.00013698,2]
[333259975,1721999441673,-500.0,0.00013698,2]
[333259976,1721999441683,-500.0,0.00013698,2]
[333259977,1721999441692,-500.0,0.00013698,2]
[333259978,1721999441701,-500.0,0.00013781,2]
[333259979,1721999441711,-766.38,0.00013781,2]
[333259980,1721999441720,-500.0,0.00013782,2]
[333259981,1721999441729,-811.98,0.00013782,2]
[333259982,1721999441738,-721.01,0.00013782,2]
[333259983,1721999441747,-709.45,0.00013782,2]
[333259984,1721999441757,-1183.0,0.00013782,2]
[333259985,1721999441767,-369.5579083,0.00013782,2]
[333259986,1721999441776,-5806.34,0.00013782,2]
[333259987,1721999441786,-646.52,0.00013782,2]
[333259988,1721999441796,-2473.41,0.00013782,2]
[333259989,1721999441805,-500.0,0.00013782,2]
[333259990,1721999441815,-1187.13,0.00013782,2]
[333259991,1721999441825,-727.64,0.00013782,2]
[333259992,1721999441837,-500.0,0.00013782,2]
[333259993,1721999441850,-554.56,0.00013782,2]
[333259994,1721999441859,-500.0,0.00013782,2]
[333259995,1721999441869,-1905.54,0.00013782,2]
[333259996,1721999441879,-603.92,0.00013782,2]
[333259997,1721999441890,-589.25,0.00013782,2]
[333259998,1721999441899,-500.0,0.00013782,2]
[333259999,1721999441909,-500.0,0.00013782,2]
[333260000,1721999441919,-3683.55,0.00013782,2]
[333260001,1721999441931,-500.0,0.00013782,2]
[333260002,1721999441941,-1319.14,0.00013782,2]
[333260003,1721999441950,-500.0,0.00013782,2]
[333260004,1721999441960,-548.71,0.00013782,2]
[333260005,1721999441970,-2208.77,0.00013782,2]
[333260006,1721999441980,-703.62,0.00013782,2]
[333260007,1721999441989,-500.0,0.00013782,2]
[333260008,1721999441999,-500.0,0.00013782,2]
[333260009,1721999442009,-734.84,0.00013782,2]
[333260010,1721999442019,-533.84,0.00013782,2]
[333260011,1721999442029,-680.89,0.00013782,2]
[333260012,1721999442039,-296.36491369,0.00013782,2]
[333260013,1721999442049,-1006.6,0.00013782,2]
[333260014,1721999442058,-629.64,0.00013782,2]
[333260015,1721999442068,-542.36,0.00013782,2]
[333260016,1721999442078,-500.0,0.00013782,2]
[333260017,1721999442088,-500.0,0.00013782,2]
[333260018,1721999442098,-1373.3,0.00013782,2]
[333260019,1721999442108,-1587.61,0.00013782,2]
[333260020,1721999442118,-500.0,0.00013782,2]
[333260021,1721999442127,-853.09,0.00013782,2]
[333260022,1721999442137,-500.0,0.00013783,2]
[333260023,1721999442147,-500.0,0.00013783,2]
[333260024,1721999442157,-500.0,0.00013783,2]
[333260025,1721999442166,-500.0,0.00013783,2]
[333260026,1721999442177,-509.75,0.00013783,2]
[333260027,1721999442187,-500.0,0.00013783,2]
[333260028,1721999442197,-500.0,0.00013783,2]
[333260029,1721999442207,-500.0,0.00013783,2]
[333260030,1721999442217,-1047.12,0.00013783,2]
[333260031,1721999442227,-744.52,0.00013783,2]
[333260032,1721999442237,-500.0,0.00013783,2]
[333260033,1721999442247,-500.0,0.00013783,2]
[333260034,1721999442257,-500.0,0.00013783,2]
[333260035,1721999442267,-576.94,0.00013783,2]
[333260036,1721999442276,-500.0,0.00013783,2]
[333260037,1721999442285,-500.0,0.00013783,2]
[333260038,1721999442294,-500.0,0.00013783,2]
[333260039,1721999442303,-500.0,0.00013783,2]
[333260040,1721999442313,-781.23,0.00013783,2]
[333260041,1721999442322,-500.0,0.00013783,2]
[333260042,1721999442332,-500.0,0.00013783,2]
[333260043,1721999442344,-500.0,0.00013783,2]
[333260044,1721999442355,-500.0,0.00013783,2]
[333260045,1721999442365,-769.06,0.00013783,2]
[333260046,1721999442374,-500.0,0.00013783,2]
[333260047,1721999442383,-500.0,0.00013783,2]
[333260048,1721999442393,-500.0,0.00013783,2]
[333260049,1721999442403,-500.0,0.00013783,2]
[333260050,1721999442412,-500.0,0.00013783,2]
[333260051,1721999442424,-500.0,0.00013783,2]
[333260052,1721999442435,-500.0,0.00013783,2]
[333260053,1721999442446,-500.0,0.00013783,2]
[333260054,1721999442455,-500.0,0.00013783,2]
[333260055,1721999442465,-1026.84,0.00013783,2]
[333260056,1721999442475,-500.0,0.00013783,2]
[333260057,1721999442484,-500.0,0.00013783,2]
[333260058,1721999442494,-4528.85,0.00013783,2]
[333260059,1721999442503,-500.0,0.00013783,2]
[333260060,1721999442512,-500.0,0.00013783,2]
[333260061,1721999442522,-500.0,0.00013783,2]
[333260062,1721999442532,-500.0,0.00013783,2]
[333260063,1721999442542,-500.0,0.00013783,2]
[333260064,1721999442552,-500.0,0.00013783,2]
[333260065,1721999442562,-500.0,0.00013783,2]
[333260066,1721999442571,-758.87,0.00013783,2]
[333260067,1721999442581,-500.0,0.00013783,2]
[333260068,1721999442591,-500.0,0.00013783,2]
[333260069,1721999442600,-508.71,0.00013783,2]
[333260070,1721999442613,-1898.45,0.00013783,2]
[333260071,1721999442622,-1315.51,0.00013783,2]
[333260072,1721999442631,-500.0,0.00013783,2]
[333260073,1721999442641,-500.0,0.00013783,2]
[333260074,1721999442650,-500.0,0.00013783,2]
[333260075,1721999442659,-777.65,0.00013783,2]
[333260076,1721999442669,-500.0,0.00013783,2]
[333260077,1721999442681,-290.90621805,0.00013783,2]
[333260078,1721999442694,-937.10378195,0.00013783,2]
[333260079,1721999442703,-381.74125362,0.00013783,2]
[333260092,1721999443365,-118.25874638,0.00013783,2]
[333260093,1721999443375,-500.0,0.00013783,2]
[333260094,1721999443384,-806.28,0.00013783,2]
[333260095,1721999443394,-500.0,0.00013783,2]
[333260096,1721999443403,-746.59,0.00013783,2]
[333260097,1721999443412,-500.0,0.00013783,2]
[333260098,1721999443422,-500.0,0.00013783,2]
[333260099,1721999443434,-476.9930559,0.00013783,2]
[333260100,1721999443444,-500.0,0.00013783,2]
[333260101,1721999443461,-756.58,0.00013783,2]
[333260102,1721999443477,-500.0,0.00013783,2]
[333260103,1721999443488,-500.0,0.00013783,2]
[333260104,1721999443498,-500.0,0.00013783,2]
[333260105,1721999443508,-501.58311684,0.00013785,2]
[333260106,1721999443519,-166.666666,0.0001396,2]
[333260107,1721999443529,-500.0,0.00013972,2]
[333260108,1721999443539,-841.16,0.00013972,2]
[333260109,1721999443548,-500.0,0.00013972,2]
[333260110,1721999443558,-500.0,0.00013972,2]
[333260111,1721999443568,-500.0,0.00013972,2]
[333260112,1721999443579,-500.0,0.00013972,2]
[333260113,1721999443589,-624.08,0.00013972,2]
[333260114,1721999443599,-500.0,0.00013972,2]
[333260115,1721999443609,-500.0,0.00013972,2]
[333260116,1721999443619,-931.82,0.00013972,2]
[333260117,1721999443630,-500.0,0.00013972,2]
[333260118,1721999443641,-500.0,0.00013972,2]
[333260119,1721999443651,-500.0,0.00013972,2]
[333260120,1721999443661,-58445.093055,0.0001399,2]
[333260121,1721999443671,-1000.0,0.00014,14]
[333260122,1721999443683,-158.4200058,0.00014046,2]
[333260123,1721999443694,-500.0,0.00014046,2]
[333260124,1721999443704,-500.0,0.00014046,2]
[333260125,1721999443714,-534.56080745,0.00014046,2]
[333260126,1721999443723,-500.0,0.00014046,2]
[333260127,1721999443733,-500.0,0.00014046,2]
[333260128,1721999443743,-58445.093055,0.00014047,2]
[333260129,1721999443753,-500.0,0.00014047,2]
[333260130,1721999443763,-500.0,0.00014047,2]
[333260131,1721999443773,-500.0,0.00014055,2]
[333260132,1721999443783,-766.38,0.00014055,2]
[333260133,1721999443792,-811.98,0.00014056,2]
[333260134,1721999443803,-721.01,0.00014056,2]
[333260135,1721999443813,-709.45,0.00014056,2]
[333260136,1721999443823,-1183.0,0.00014056,2]
[333260137,1721999443834,-5806.34,0.00014056,2]
[333260138,1721999443851,-646.52,0.00014056,2]
[333260139,1721999443861,-2473.41,0.00014056,2]
[333260140,1721999443872,-500.0,0.00014056,2]
[333260141,1721999443883,-1187.13,0.00014056,2]
[333260142,1721999443893,-727.64,0.00014056,2]
[333260143,1721999443903,-500.0,0.00014056,2]
[333260144,1721999443914,-554.56,0.00014056,2]
[333260145,1721999443926,-500.0,0.00014056,2]
[333260146,1721999443937,-1905.54,0.00014056,2]
[333260147,1721999443947,-603.92,0.00014056,2]
[333260148,1721999443957,-589.25,0.00014056,2]
[333260149,1721999443967,-500.0,0.00014056,2]
[333260150,1721999443977,-500.0,0.00014056,2]
[333260151,1721999443987,-3683.55,0.00014056,2]
[333260152,1721999443996,-500.0,0.00014056,2]
[333260153,1721999444006,-1319.14,0.00014056,2]
[333260154,1721999444016,-500.0,0.00014056,2]
[333260155,1721999444025,-548.71,0.00014056,2]
[333260156,1721999444035,-2208.77,0.00014056,2]
[333260157,1721999444044,-703.62,0.00014056,2]
[333260158,1721999444055,-500.0,0.00014056,2]
[333260159,1721999444066,-500.0,0.00014056,2]
[333260160,1721999444078,-734.84,0.00014056,2]
[333260161,1721999444088,-533.84,0.00014056,2]
[333260162,1721999444098,-680.89,0.00014056,2]
[333260163,1721999444109,-1006.6,0.00014056,2]
[333260164,1721999444119,-629.64,0.00014056,2]
[333260165,1721999444129,-542.36,0.00014056,2]
[333260166,1721999444139,-500.0,0.00014056,2]
[333260167,1721999444149,-500.0,0.00014056,2]
[333260168,1721999444159,-1373.3,0.00014056,2]
[333260169,1721999444169,-1587.61,0.00014056,2]
[333260170,1721999444181,-500.0,0.00014056,2]
[333260171,1721999444195,-853.09,0.00014056,2]
[333260172,1721999444206,-500.0,0.00014057,2]
[333260173,1721999444216,-500.0,0.00014057,2]
[333260174,1721999444227,-500.0,0.00014057,2]
[333260175,1721999444238,-500.0,0.00014057,2]
[333260176,1721999444249,-509.75,0.00014057,2]
[333260177,1721999444260,-500.0,0.00014057,2]
[333260178,1721999444270,-500.0,0.00014057,2]
[333260179,1721999444280,-500.0,0.00014057,2]
[333260180,1721999444292,-1047.12,0.00014057,2]
[333260181,1721999444301,-744.52,0.00014057,2]
[333260182,1721999444312,-500.0,0.00014057,2]
[333260183,1721999444325,-500.0,0.00014057,2]
[333260184,1721999444340,-500.0,0.00014057,2]
[333260185,1721999444350,-576.94,0.00014057,2]
[333260186,1721999444360,-500.0,0.00014057,2]
[333260187,1721999444371,-500.0,0.00014057,2]
[333260188,1721999444381,-500.0,0.00014057,2]
[333260189,1721999444391,-500.0,0.00014057,2]
[333260190,1721999444400,-781.23,0.00014057,2]
[333260191,1721999444646,-500.0,0.00014057,2]
[333260192,1721999444656,-500.0,0.00014057,2]
[333260193,1721999444666,-500.0,0.00014057,2]
[333260194,1721999444678,-500.0,0.00014057,2]
[333260195,1721999444687,-769.06,0.00014057,2]
[333260196,1721999444697,-500.0,0.00014057,2]
[333260197,1721999444707,-500.0,0.00014057,2]
[333260198,1721999444716,-500.0,0.00014057,2]
[333260199,1721999444726,-500.0,0.00014057,2]
[333260200,1721999444736,-500.0,0.00014057,2]
[333260201,1721999444746,-500.0,0.00014057,2]
[333260202,1721999444755,-500.0,0.00014057,2]
[333260203,1721999444765,-1026.84,0.00014057,2]
[333260204,1721999444776,-500.0,0.00014057,2]
[333260205,1721999444786,-500.0,0.00014057,2]
[333260206,1721999444795,-4528.85,0.00014057,2]
[333260207,1721999444806,-500.0,0.00014057,2]
[333260208,1721999444817,-500.0,0.00014057,2]
[333260209,1721999444828,-500.0,0.00014057,2]
[333260210,1721999444842,-500.0,0.00014057,2]
[333260211,1721999444852,-500.0,0.00014057,2]
[333260212,1721999444862,-500.0,0.00014057,2]
[333260213,1721999444872,-500.0,0.00014057,2]
[333260214,1721999444882,-758.87,0.00014057,2]
[333260215,1721999444892,-500.0,0.00014057,2]
[333260216,1721999444902,-500.0,0.00014057,2]
[333260217,1721999444912,-508.71,0.00014057,2]
[333260218,1721999444923,-1898.45,0.00014057,2]
[333260219,1721999444933,-1315.51,0.00014057,2]
[333260220,1721999444943,-500.0,0.00014057,2]
[333260221,1721999444953,-500.0,0.00014057,2]
[333260222,1721999444962,-500.0,0.00014057,2]
[333260223,1721999444971,-777.65,0.00014057,2]
[333260224,1721999444980,-500.0,0.00014057,2]
[333260225,1721999444989,-1228.01,0.00014057,2]
[333260226,1721999445000,-500.0,0.00014057,2]
[333260227,1721999445011,-500.0,0.00014057,2]
[333260228,1721999445022,-806.28,0.00014057,2]
[333260229,1721999445034,-500.0,0.00014057,2]
[333260230,1721999445044,-746.59,0.00014057,2]
[333260231,1721999445054,-629.26259657,0.00014057,2]
[333260232,1721999445064,-500.0,0.00014057,2]
[333260233,1721999445075,-500.0,0.00014057,2]
[333260234,1721999445084,-756.58,0.00014057,2]
[333260235,1721999445094,-500.0,0.00014057,2]
[333260236,1721999445104,-500.0,0.00014057,2]
[333260237,1721999445113,-500.0,0.00014057,2]
[333260238,1721999445122,-500.0,0.00014058,2]
[333260239,1721999445132,-777.36,0.00014058,2]
[333260240,1721999445141,-500.0,0.00014058,2]
[333260241,1721999445151,-714.5,0.00014058,2]
[333260242,1721999445161,-500.0,0.00014058,2]
[333260243,1721999445171,-500.0,0.00014058,2]
[333260244,1721999445182,-500.0,0.00014058,2]
[333260245,1721999445192,-630.84,0.00014058,2]
[333260246,1721999445202,-500.0,0.00014058,2]
[333260247,1721999445212,-681.48,0.00014058,2]
[333260248,1721999445222,-160.0,0.00014071,4]
[333260249,1721999445232,-14122.38228606,0.00014103,2]
[333260268,1721999796294,153.61,0.00015,31]
[333260269,1721999796338,153.61,0.00015,31]
[333260270,1721999796388,153.61,0.00015,31]
[333260271,1721999796462,153.61,0.00015,31]
[333260272,1721999796503,153.61,0.00015,31]
[333260282,1722000399463,153.61,0.00015,31]
[333260283,1722000399516,153.61,0.00015,31]
[333260284,1722000399576,153.61,0.00015,31]
[333260285,1722000399637,153.61,0.00015,31]
[333260286,1722000399703,153.61,0.00015,31]
[333260287,1722000399757,153.61,0.00015,31]
[333260288,1722000399821,153.61,0.00015,31]
[333260290,1722000406726,-200.0,0.0001,2]
[333260291,1722000406750,-100.80811935,0.0001137,2]
[333260292,1722000550114,-200.0,0.0001,2]
[333260293,1722000550136,-161.04209715,0.0001137,2]
[333260322,1722000632809,-177.351039,0.00012519,2]
[333260324,1722000632819,-166.666666,0.0001254,2]
[333260326,1722000632828,-177.351039,0.0001265,2]
[333260328,1722000632837,-177.351039,0.0001278,2]
[333260330,1722000632846,-166.666666,0.00012882,2]
[333260332,1722000632855,-134.613551,0.00012911,2]
[333260334,1722000632870,-42.737488,0.00012911,2]
[333260336,1722000632879,-177.351039,0.00013041,2]
[333260337,1722000632887,-177.351039,0.00013171,2]
[333260338,1722000632896,-166.666666,0.00013224,2]
[333260339,1722000632905,-86.39376801,0.00013425,2]
[333260340,1722000632916,-76.62394399,0.00013425,2]
[333260341,1722000632925,-1349.28404448,0.00013497,2]
[333260342,1722000632935,-166.666666,0.00013566,2]
[333260343,1722000632944,-15007.371387,0.000137,2]
[333260344,1722000632953,-367.53930495,0.00013705,2]
[333260345,1722000632962,-152.61196378,0.0001372,2]
[333260346,1722000632972,-500.0,0.00013772,2]
[333260347,1722000632981,-500.0,0.00013772,2]
[333260348,1722000632990,-500.0,0.00013772,2]
[333260349,1722000632999,-502.56208774,0.00013772,2]
[333260350,1722000633008,-6584.34060206,0.00013773,2]
[333260351,1722000633021,-473.83415027,0.00013773,2]
[333260352,1722000633034,-484.83082982,0.00013773,2]
[333260362,1722000639025,-734.45,0.00013772,2]
[333260363,1722000639036,-44994.60184535,0.00013773,2]
[333260364,1722000639046,-500.0,0.00013779,2]
[333260365,1722000639056,-1826.14,0.00013779,2]
[333260366,1722000639065,-500.0,0.00013779,2]
[333260367,1722000639075,-564.7,0.00013779,2]
[333260368,1722000639085,-3530.07,0.00013779,2]
[333260369,1722000639095,-500.0,0.00013779,2]
[333260370,1722000639105,-525.85,0.00013779,2]
[333260371,1722000639115,-2116.73,0.00013779,2]
[333260372,1722000639126,-674.3,0.00013779,2]
[333260373,1722000639135,-511.59,0.00013779,2]
[333260374,1722000639144,-704.22,0.00013779,2]
[333260375,1722000639154,-603.4,0.00013779,2]
[333260376,1722000639164,-519.76,0.00013779,2]
[333260377,1722000639173,-500.0,0.00013779,2]
[333260378,1722000639183,-1521.46,0.00013779,2]
[333260379,1722000639193,-817.55,0.00013779,2]
[333260380,1722000639202,-500.0,0.00013779,2]
[333260381,1722000639212,-500.0,0.0001378,2]
[333260382,1722000639222,-500.0,0.0001378,2]
[333260383,1722000639233,-1003.49,0.0001378,2]
[333260384,1722000639246,-500.0,0.0001378,2]
[333260385,1722000639256,-500.0,0.0001378,2]
[333260386,1722000639267,-737.02,0.0001378,2]
[333260387,1722000639276,-500.0,0.0001378,2]
[333260388,1722000639287,-500.0,0.0001378,2]
[333260389,1722000639297,-500.0,0.0001378,2]
[333260390,1722000639306,-500.0,0.0001378,2]
[333260391,1722000639317,-500.0,0.0001378,2]
[333260392,1722000639327,-500.0,0.0001378,2]
[333260393,1722000639338,-690.97,0.0001378,2]
[333260394,1722000639348,-1133.71,0.0001378,2]
[333260395,1722000639359,-619.58,0.0001378,2]
[333260396,1722000639373,-4340.15,0.0001378,2]
[333260397,1722000639383,-778.15,0.0001378,2]
[333260398,1722000639392,-500.0,0.0001378,2]
[333260399,1722000639401,-679.89,0.0001378,2]
[333260400,1722000639414,-500.0,0.0001378,2]
[333260401,1722000639423,-500.0,0.0001378,2]
[333260402,1722000639433,-500.0,0.0001378,2]
[333260403,1722000639442,-369.5579083,0.0001378,2]
[333260404,1722000639451,-697.32,0.0001378,2]
[333260405,1722000639460,-500.0,0.0001378,2]
[333260406,1722000639469,-5564.41,0.0001378,2]
[333260407,1722000639478,-500.0,0.0001378,2]
[333260408,1722000639487,-500.0,0.0001378,2]
[333260409,1722000639497,-500.0,0.0001378,2]
[333260410,1722000639507,-2370.35,0.0001378,2]
[333260411,1722000639516,-727.25,0.0001378,2]
[333260412,1722000639525,-167.92120649,0.0001378,2]
[333260413,1722000639970,160.17781474,0.00012119,2]
[333260421,1722000640565,-91.00028719,0.00012119,2]
[333260422,1722000640575,-332.07879351,0.0001378,2]
[333260423,1722000640585,-1137.66,0.0001378,2]
[333260424,1722000640595,-1807.7109193,0.0001378,2]
[333260425,1722000640617,-11.6390807,0.0001378,2]
[333260426,1722000640629,-500.0,0.0001378,2]
[333260427,1722000640639,-500.0,0.0001378,2]
[333260428,1722000640648,-500.0,0.0001378,2]
[333260429,1722000640658,-500.0,0.0001378,2]
[333260430,1722000640667,-500.0,0.0001378,2]
[333260431,1722000640677,-1137.8,0.0001378,2]
[333260432,1722000640686,-530.53,0.0001378,2]
[333260433,1722000640696,-739.09,0.0001378,2]
[333260434,1722000640705,-1264.18,0.0001378,2]
[333260435,1722000640715,-500.0,0.0001378,2]
[333260436,1722000640724,-500.0,0.0001378,2]
[333260437,1722000640733,-500.0,0.0001378,2]
[333260438,1722000640742,-500.0,0.0001378,2]
[333260439,1722000640753,-652.52,0.0001378,2]
[333260440,1722000640763,-693.53,0.0001378,2]
[333260441,1722000640787,-296.36491369,0.0001378,2]
[333260442,1722000640798,-964.66,0.0001378,2]
[333260443,1722000640808,-500.0,0.0001378,2]
[333260444,1722000640818,-500.0,0.0001378,2]
[333260445,1722000640827,-1316.08,0.0001378,2]
[333260446,1722000640837,-500.0,0.0001378,2]
[333260447,1722000640846,-984.06,0.0001378,2]
[333260448,1722000640856,-744.97,0.0001378,2]
[333260449,1722000640865,-500.0,0.0001378,2]
[333260450,1722000640878,-500.0,0.00013781,2]
[333260451,1722000640888,-500.0,0.00013781,2]
[333260452,1722000640898,-500.0,0.00013781,2]
[333260453,1722000640907,-748.68,0.00013781,2]
[333260454,1722000640917,-500.0,0.00013781,2]
[333260455,1722000640928,-500.0,0.00013781,2]
[333260456,1722000640938,-500.0,0.00013781,2]
[333260457,1722000640948,-500.0,0.00013781,2]
[333260458,1722000640957,-500.0,0.00013781,2]
[333260459,1722000640967,-684.73,0.00013781,2]
[333260460,1722000640977,-500.0,0.00013781,2]
[333260461,1722000640986,-500.0,0.00013781,2]
[333260462,1722000640995,-604.56,0.00013781,2]
[333260463,1722000641005,-500.0,0.00013781,2]
[333260464,1722000641014,-500.0,0.00013781,2]
[333260465,1722000641024,-653.09,0.00013781,2]
[333260466,1722000641033,-500.0,0.00013781,2]
[333260467,1722000641042,-500.0,0.00013781,2]
[333260468,1722000641052,-500.0,0.00013781,2]
[333260469,1722000641062,-500.0,0.00013781,2]
[333260470,1722000641071,-713.5,0.00013781,2]
[333260471,1722000641080,-500.0,0.00013781,2]
[333260472,1722000641090,-500.0,0.00013781,2]
[333260473,1722000641100,-500.0,0.00013781,2]
[333260474,1722000641110,-500.0,0.00013781,2]
[333260475,1722000641122,-500.0,0.00013781,2]
[333260476,1722000641131,-552.9,0.00013781,2]
[333260477,1722000641141,-500.0,0.00013781,2]
[333260478,1722000641151,-500.0,0.00013781,2]
[333260479,1722000641160,-500.0,0.00013781,2]
[333260480,1722000641170,-500.0,0.00013781,2]
[333260481,1722000641179,-500.0,0.00013781,2]
[333260482,1722000641189,-500.0,0.00013781,2]
[333260483,1722000641198,-500.0,0.00013781,2]
[333260484,1722000641208,-500.0,0.00013781,2]
[333260485,1722000641219,-500.0,0.00013781,2]
[333260486,1722000641229,-500.0,0.00013781,2]
[333260487,1722000641242,-500.0,0.00013781,2]
[333260488,1722000641252,-806.12,0.00013781,2]
[333260489,1722000641262,-500.0,0.00013781,2]
[333260490,1722000641272,-1260.7,0.00013781,2]
[333260491,1722000641283,-500.0,0.00013781,2]
[333260492,1722000641292,-500.0,0.00013781,2]
[333260493,1722000641302,-598.07,0.00013781,2]
[333260494,1722000641312,-417.85646683,0.00013781,2]
[333260495,1722000641322,-500.0,0.00013781,2]
[333260496,1722000641332,-500.0,0.00013781,2]
[333260497,1722000641341,-684.37,0.00013781,2]
[333260498,1722000641351,-500.0,0.00013781,2]
[333260499,1722000641360,-893.0,0.00013781,2]
[333260500,1722000641374,-500.0,0.00013781,2]
[333260501,1722000641384,-500.0,0.00013781,2]
[333260502,1722000641394,-500.0,0.00013781,2]
[333260503,1722000641403,-428.81608943,0.00013781,2]
[333260504,1722000641413,-500.0,0.00013781,2]
[333260505,1722000641422,-166.666666,0.00013907,2]
[333260506,1722000641433,-5304.84073988,0.00013929,2]
[333260507,1722000641445,-500.0,0.00014043,2]
[333260508,1722000641457,-500.0,0.00014043,2]
[333260509,1722000641468,-500.0,0.00014043,2]
[333260510,1722000641478,-500.0,0.00014043,2]